Cogmind - Beta 13 @@@ ROGUE MODE // 2024.05.01 @ 00:07:36 Player: GayPredator Result: Destroyed by Y-45 Defender with Heavy Assault Rifle Performance ------------- Evolutions (1) 500 Regions Visited (3) 600 Robots Destroyed (31) 155 Value Destroyed (458) 458 Prototype IDs (2) 40 Alien Tech Used (0) 0 Bonus (0) 0 TOTAL SCORE: 1753 Bonus ------- None Cogmind --------- Core Integrity 0/400 Matter 251/300 Energy 100/100 System Corruption 4% Temperature Cool (0) Movement Core (50) Location -9/Materials Parts ------- > --- POWER (1) -------- (None) > --- PROPULSION (3) --- (None) > --- UTILITY (3) ------ (None) > --- WEAPON (2) ------- Heavy Assault Rifle > --- INVENTORY (5) ---- Heat Sink Large Storage Unit ECM Suite Peak State ------------ > --- POWER ------------ Ion Engine > --- PROPULSION ------- Wheel Wheel Compact Wheel > --- UTILITY ---------- High-capacity Storage Unit Improved Terrain Scanner Terrain Scan Processor > --- WEAPON ----------- Assault Rifle Assault Rifle > --- INVENTORY -------- Light Ion Engine Compact Wheel Large Storage Unit ECM Suite Light Armor Plating Assault Rifle Assault Rifle [Rating: 12] Favorites ----------- Power Ion Engine Engine Ion Engine Propulsion Wheel Wheel Wheel Utility Light Armor Plating Device Improved Terrain Scanner Storage High-capacity Storage Unit Processor Terrain Scan Processor Protection Light Armor Plating Weapon Assault Rifle Energy Gun EM Pulse Gun Ballistic Gun Assault Rifle Build | -11 -10 -10 -9 ------- Run | Yrd Mat Min Mat Slots Evolved 2 | . . . 2 Power . | . . . . Propulsion 1 | . . . 1 Utility 1 | . . . 1 Weapon . | . . . . Parts Attached 26 | 6 3 1 16 Power 3 | 1 . . 2 Engine 3 | 1 . . 2 Core . | . . . . Reactor . | . . . . Propulsion 6 | 2 . . 4 Treads . | . . . . Leg . | . . . . Wheel 6 | 2 . . 4 Hover . | . . . . Flight . | . . . . Utility 10 | 1 2 1 6 Device 2 | . . . 2 Storage 3 | 1 1 1 . Processor 1 | . . . 1 Hackware . | . . . . Protection 4 | . 1 . 3 Artifact . | . . . . Weapon 7 | 2 1 . 4 Energy Gun 1 | 1 . . . Energy Cannon . | . . . . Ballistic Gun 6 | 1 1 . 4 Ballistic Cannon . | . . . . Launcher . | . . . . Special Weapon . | . . . . Impact Weapon . | . . . . Slashing Weapon . | . . . . Piercing Weapon . | . . . . Special Melee Weapon . | . . . . Unidentified Prototypes . | . . . . Parts Lost 15 | . . . 15 Power 3 | . . . 3 Propulsion 4 | . . . 4 Utility 3 | . . . 3 Weapon 5 | . . . 5 Highest Loss Streak 12 | . . . 12 To Critical Strikes . | . . . . Average Slot Usage (%) 93 | . 97 100 82 Engine 11 | . 14 14 7 Wheel 27 | . 28 28 25 Device 1 | . . . 4 Storage 12 | . 14 14 10 Processor 3 | . . . 9 Protection 10 | . 11 14 3 Energy Gun 1 | . 8 . . Ballistic Gun 24 | . 19 28 21 Naked Turns . | . . . . Heaviest Build 52 | 14 32 52 50 Greatest Support 36 | 26 26 26 36 Greatest Overweight (x) 4 | . 1 1 4 Average Overweight (x) . | . . 1 1 Largest Inventory Capacity 20 | 8 15 20 20 Average Capacity 17 | 7 14 17 19 Most Carried 9 | 2 6 9 9 Average Carried 6 | . 3 7 5 Final Capacity 20 | 8 15 20 5 Final Carried 9 | 2 6 9 3 Class Distribution -------------------- 88% | Mutant 11% | Scavenger-Mutant Dominant Class ---------------- Mutant | -10/Materials Mutant | -10/Mines Mutant | -9/Materials Resources | -11 -10 -10 -9 ----------- Run | Yrd Mat Min Mat Matter Collected 837 | 260 72 132 373 Remotely . | . . . . Salvage Created 779 | . 140 144 495 Parts 80 | . 13 22 45 Haulers Intercepted 1 | . 1 . . Recyclers Shooed 1 | . 1 . . Parts Field Recycled . | . . . . Retrieved Matter . | . . . . Parts Self-Destructed . | . . . . Prevented . | . . . . Kills | -11 -10 -10 -9 ------- Run | Yrd Mat Min Mat Combat Hostiles Destroyed 24 | . . 8 16 Guns 24 | . . 8 16 Classes Destroyed 11 | . 3 2 6 Worker 1 | . . . 1 Builder 1 | . 1 . . Tunneler 1 | . . 1 . Hauler 1 | . 1 . . Recycler 1 | . 1 . . Operator 1 | . . . 1 Watcher 1 | . . . 1 Swarmer 19 | . . 8 11 Grunt 1 | . . . 1 Brawler 1 | . . . 1 Sentry 3 | . . . 3 Best Kill Streak 7 | . 3 3 7 Combat Bots Only 6 | . . 3 6 Max Kills in Single Turn 1 | . 1 1 1 Gunslinging . | . . . . Exploded . | . . . . Melee . | . . . . Uniques/NPCs Destroyed . | . . . . Combat | -11 -10 -10 -9 -------- Run | Yrd Mat Min Mat Hostile Shots Fired 211 | . . 46 165 Missed 47 | . . 9 38 Damage Taken 1770 | . 2 298 1470 Core 471 | . . 58 413 Absorbed by Shields . | . . . . Core Remaining (%) 88 | 100 . 76 . Volleys Fired 104 | . 12 25 67 Largest 2 | . 2 2 2 Hottest 60 | . 60 40 43 Shots Fired 195 | . 24 50 121 Gun 195 | . 24 50 121 Cannon . | . . . . Launcher . | . . . . Special . | . . . . Kinetic 185 | . 14 50 121 Thermal . | . . . . Explosive . | . . . . Electromagnetic 10 | . 10 . . Robot Hit Streak 14 | . 4 3 14 Robot Miss Streak 6 | . 2 6 5 Penetration Max . | . . . . Secondary Targets 2 | . . . 2 Max Gunslinging Chain 1 | . . . 1 Shots Hit Robots 110 | . 16 21 73 Core Hits 44 | . 6 9 29 Critical Kills . | . . . . Critical Parts Destroyed 1 | . . . 1 Critical Strikes 1 | . . . 1 Destroy 1 | . . . 1 Melee Attacks . | . . . . Impact . | . . . . Slashing . | . . . . Piercing . | . . . . Sneak Attacks . | . . . . Combat Hostiles . | . . . . Follow-up Attacks . | . . . . Damage Inflicted 1396 | . 208 286 902 Guns 1365 | . 202 286 877 Cannons . | . . . . Explosions . | . . . . Melee . | . . . . Ramming 31 | . 6 . 25 Kinetic 1261 | . 98 286 877 Thermal . | . . . . Explosive . | . . . . Electromagnetic 104 | . 104 . . Impact . | . . . . Slashing . | . . . . Piercing . | . . . . Highest Corruption 4 | . . . 4 Average Corruption 4 | . . . 4 Corruption Purged . | . . . . Corruption Blocked . | . . . . Effects 2 | . . . 2 Energy Discharges 1 | . . . 1 Alerts 1 | . . . 1 Overload Shots . | . . . . Overflow Damage . | . . . . Projectiles . | . . . . Explosions . | . . . . Melee . | . . . . Knockbacks 1 | . 1 . . Impact 1 | . 1 . . Kinetic . | . . . . Secondary . | . . . . Self-Inflicted Damage 14 | . 2 . 12 Shots . | . . . . Rammed 3 | . 2 . 1 Targets Rammed 3 | . 2 . 1 Kicked . | . . . . Crushed . | . . . . Highest Temperature 45 | . 45 . 12 Average Temperature 13 | . 17 . 3 Received Heat Transfer 276 | . . . 276 Siege Activations . | . . . . Robots Corrupted . | . . . . Combat Hostiles . | . . . . Parts Fried . | . . . . Impact Corruptions . | . . . . Robots Melted . | . . . . Combat Hostiles . | . . . . Parts Melted . | . . . . Heat Transferred . | . . . . Parts Sabotaged . | . . . . Parts Stolen . | . . . . Parts Stripped . | . . . . Power Chain Reactions . | . . . . Alert | -11 -10 -10 -9 ------- Run | Yrd Mat Min Mat Peak Influence 368 | . 33 167 368 Initial 39 | . . 12 39 Average 106 | . 17 88 184 Maximum Alert Level 1 | . . . 1 Low Security (%) 88 | 100 100 100 64 Level 1 11 | . . . 35 Level 2 . | . . . . Level 3 . | . . . . Level 4 . | . . . . Level 5 . | . . . . High Security . | . . . . Max Security . | . . . . Squads Dispatched . | . . . . Investigation . | . . . . Extermination . | . . . . Reinforcement . | . . . . Assault . | . . . . Garrison . | . . . . Intercept . | . . . . Searches Triggered . | . . . . Construction Impeded . | . . . . Haulers Reinforced . | . . . . Active Scanning Responses . | . . . . Cargo Convoy Interrupts . | . . . . Stealth | -11 -10 -10 -9 --------- Run | Yrd Mat Min Mat Distress Signals 2 | . . . 2 Communications Jammed . | . . . . Distress Signals . | . . . . Times Spotted 30 | . . 10 20 Peak Tracking Total 9 | . . 3 9 Tactical Retreats 2 | . . 2 . Traps | -11 -10 -10 -9 ------- Run | Yrd Mat Min Mat Traps Triggered . | . . . . Indirectly . | . . . . Trap Hack Attempts . | . . . . Triggered . | . . . . Disarmed . | . . . . Reprogrammed . | . . . . Reused . | . . . . Traps Extracted . | . . . . Installed . | . . . . Triggered . | . . . . Machines | -11 -10 -10 -9 ---------- Run | Yrd Mat Min Mat Machines Disabled 2 | . 1 . 1 Max in Single Turn 1 | . 1 . 1 Machines Repaired . | . . . . Machines Dismantled . | . . . . Machines Sabotaged . | . . . . Overloaded Fab Kills . | . . . . Hacking | -11 -10 -10 -9 --------- Run | Yrd Mat Min Mat Machines Accessed 5 | . 2 . 3 Terminals 5 | . 2 . 3 Fabricators . | . . . . Repair Stations . | . . . . Recycling Units . | . . . . Scanalyzers . | . . . . Garrison Access . | . . . . Total Hacks 13 | . 4 . 9 Successful 3 | . 1 . 2 Failed 10 | . 3 . 7 Catastrophic 2 | . 1 . 1 Database Lockouts . | . . . . Manual 7 | . 1 . 6 Terminals 13 | . 4 . 9 Fabricators . | . . . . Repair Stations . | . . . . Recycling Units . | . . . . Scanalyzers . | . . . . Garrison Access . | . . . . Terminal Hacks 3 | . 1 . 2 Prototype ID Bank 1 | . 1 . . Alert Level 1 | . . . 1 Locate Traps 1 | . . . 1 Fabricator Hacks . | . . . . Repair Station Hacks . | . . . . Recycling Unit Hacks . | . . . . Scanalyzer . | . . . . Garrison Access Hacks . | . . . . Unauthorized Hacks . | . . . . Terminals . | . . . . Fabricators . | . . . . Repair Stations . | . . . . Recycling Units . | . . . . Scanalyzers . | . . . . Garrison Access . | . . . . Data Cores Recovered 1 | . . . 1 Used . | . . . . Hacking Detections 5 | . 2 . 3 Full Trace Events 1 | . 1 . . Feedback Events . | . . . . Feedback Blocked . | . . . . Robot Schematics Acquired . | . . . . Robots Built . | . . . . Authchips . | . . . . Time . | . . . . Total Robot Build Rating . | . . . . Part Schematics Acquired . | . . . . Parts Built . | . . . . Authchips . | . . . . Time . | . . . . Total Part Build Rating . | . . . . Parts Repaired . | . . . . Time . | . . . . Parts Recycled . | . . . . Recycled Matter . | . . . . Retrieved Matter . | . . . . Retrieved Components . | . . . . Parts Scanalyzed . | . . . . Part Schematics Acquired . | . . . . Parts Damaged . | . . . . Bothacking | -11 -10 -10 -9 ------------ Run | Yrd Mat Min Mat Used RIF Installer . | . . . . Robots Hacked . | . . . . Non-combat . | . . . . Combat . | . . . . Robot Hacks Applied . | . . . . Relay Couplers Released . | . . . . Fabnet Peak Effective % . | . . . . Robots Rewired . | . . . . Allies Hacked . | . . . . Hacks Repelled . | . . . . Allies | -11 -10 -10 -9 -------- Run | Yrd Mat Min Mat Total Allies . | . . . . Largest Group . | . . . . Highest-Rated Group . | . . . . Highest-Rated Ally . | . . . . Total Orders . | . . . . Ally Attacks . | . . . . Total Damage . | . . . . Kills . | . . . . Allies Corrupted . | . . . . Allies Melted . | . . . . Intel | -11 -10 -10 -9 ------- Run | Yrd Mat Min Mat Robot Analysis Total . | . . . . Derelict Logs Recovered 1 | . . 1 . Drone Launches . | . . . . Drone Recoveries . | . . . . Exploration | -11 -10 -10 -9 ------------- Run | Yrd Mat Min Mat Turns Passed 1257 | 52 164 637 404 Spaces Moved 847 | 47 109 504 187 Core 4 | 1 . . 3 Treads . | . . . . Legs . | . . . . Wheels 843 | 46 109 504 184 Hover . | . . . . Flight . | . . . . Fastest Speed 50 | 50 90 105 50 Average Speed 103 | 88 104 105 100 Slowest Speed 140 | 90 105 105 140 Overloaded Moves . | . . . . Propulsion Burnouts . | . . . . Robots Hopped . | . . . . Cave-ins Triggered . | . . . . Exploration Rate (%) 38 | 4 28 96 26 Regions Visited 3 Branch Regions 1 Pre-discovered Areas . | . . . . Known Exits Taken . | . . . . Unknown Exits Taken 3 | 1 1 1 . Scrap Searched 1 | . . 1 . Spaces Dug . | . . . . Terrain Destroyed . | . . . . Melee . | . . . . Projectile . | . . . . AOE . | . . . . Terrain Rammed . | . . . . Walls Destroyed . | . . . . Machines Disabled . | . . . . Actions | -11 -10 -10 -9 --------- Run | Yrd Mat Min Mat Total 1036 | 54 135 561 286 Wait 40 | . 2 30 8 Move 844 | 46 108 503 187 Hop . | . . . . Pick Up 10 | 2 5 2 1 Fast Attach 15 | 6 3 . 6 Attach 9 | . . . 9 Detach 2 | . . . 2 Swap 2 | . . 1 1 Drop 7 | . 3 . 4 Fire 104 | . 12 25 67 Melee . | . . . . Ram 3 | . 2 . 1 Kick . | . . . . Crush . | . . . . Escape Stasis . | . . . . Rewire . | . . . . Trap . | . . . . Miscellaneous . | . . . . Route ------- -11/Scrapyard -10/Materials -10/Mines (discovered 3 exits: *Mat x2 / [*Sub]) -9/Materials (discovered 1 exit: *Min) History --------- Turn | Location | Event 29 | -11/Scrapyard | Discovered new exit (range 16) 53 | -11/Scrapyard | Entered Materials 139 | -10/Materials | Discovered new exit (range 11) 217 | -10/Materials | Entered Mines 310 | -10/Mines | Build established: Mutant 382 | -10/Mines | Discovered new exit (range 14) 593 | -10/Mines | Discovered new exit (range 9) 778 | -10/Mines | Discovered new exit (range 10) 854 | -10/Mines | Entered Materials 854 | -9/Materials | Evolved 2 slots: Propulsion x1, Utility x1 855 | -9/Materials | Identified exit to Mines 1149 | -9/Materials | Core integrity fell below 50% 1235 | -9/Materials | Core integrity fell below 20% 1251 | -9/Materials | Lost 12 parts (2p4n3u3w) 1258 | -9/Materials | Destroyed by Y-45 Defender with Heavy Assault Rifle Last Messages --------------- 01194_ K-01 Serf collects debris. 01199_ Terrain Scan Processor destroyed. 01199_ System corrupted by crushing effect (+4). 01203_ System corrupted: IFF burst signal emitted. 01214_ B-36 Bruiser destroyed. 01215_ Acquired 54 matter. 01220_ Assault Rifle destroyed. 01232_ S-10 Pest destroyed. 01233_ System corrupted: Energy discharge (-33). 01233_ Dropped Hcp. Storage Unit. 01234_ Terminal disabled. 01235_ Acquired Hvy. Assault Rifle. 01243_ S-10 Pest destroyed. 01243_ K-01 Serf collects debris. 01244_ Acquired 10 matter. 01246_ K-01 Serf collects debris. 01248_ S-10 Pest destroyed. 01249_ K-01 Serf collects debris. 01252_ Lgt. Assault Rifle destroyed. 01254_ K-01 Serf collects debris. Map ----- +----------------------------------------------------+ | ?????????????????????#?###?# #? + ^ ^ | | ???????????????????????#???# #?? ?### | | ????????????????????????#??# #???#??#?###### | | ?????????????????????#??####### ##???#?#?# | | ?????????????????????#?##??#?## #??##???## "" | | ??????????????????? ??? ?????## #????#?#?# "" | | ?????????????????#???"?"? ????#+##+######???# "" | | ???????????????????????????#?## #?#?# | | ??????????????????? ????? ????# ##??###### | | ????????????????????? ?? ?????# #?#???T??? | | ???????????????????? ""???????# """ """ #?###????? | | ???????????????????? "?"????#?# """ """ ##???????? | | ??????????????????????""??????# """=""" #??#? ? ?? | | ???????????????????????? ???## = #?###????? | | ???????????????????###+????##?# #????????? | | ???????????????????# ##########+#############+ | | ???????????????????# | | ?????????????????? | | ???????????????????# | | ???????????????????# ####### #######+###### | | ????????????????????############ #?? ????? ? ?#? | | ?????????????????????# #?# # ??? ?"?????#? | | ?????????????????????# #?#! #?????????? ??? | | ?????????????????????#! *"T"!#?# / # ????????????? | | ?????????????????????# [%""[!#?# #?? ????? ????? | | ?????????????????????# =@=Yk### ##???#????????? | | ?????????????????????######/## ####??????????? | | ????????????????????????#=*=%[ %= ???? | | ????????????????????????#=*=/ T * > ??? | | ????????????????????????# ???? | | ????????????????????????# ## #####" ???? | | ????????????????????????# ### ##????? !"!????? | | ????????????????????????+ #?# #??????????????? | | ??????????????????????? # #?# #??????????????? | | ??????????????????????? # #?# #??????????????? | | ??????????????????????"?# ??# #??????????????? | | ?????????????????????? ?# ?? ??????????????? | | ????????????????????????# ?? #?????????????? | | ???????????????????????? ?? +?????????????? | | ???????????????????????? ??? #?????????????? | | ???????????????????????? ??? #?????????????? | | ???????????????????????? ??? #??????????????? | | ???????????????????????????????? ????????????????? | | ?????????????????????????????????????????????????? | | ?????????????????????????????????????????????????? | | ?????????????????????????????????????????????????? | | ?????????????????????????????????????????????????? | | ?????????????????????????????????????????????????? | | ?????????????????????????????????????????????????? | | ?????????????????????????????????????????????????? | +----------------------------------------------------+ Best States ------------- Heat Dissipation 28 Energy Generation 10 Energy Capacity 250 Matter Stores 300 Matter Capacity 300 Sight Range 16 Terrain Scan Range 16 Terrain Scan Density 85 Armor Coverage 150 Evasion (%) 42 Item Schematics ----------------- None Robot Schematics ------------------ None Fabricated ------------ Nothing Alien Tech Used ----------------- None Achievements -------------- None Challenges ------------ None Game ------ Seed SmallMiniRifle Manual? 0 Play Time 00:13:59 Cumulative 59.7 hours Start 2024.04.30 @ 23:55:29 End 2024.05.01 @ 00:07:36 Sessions 1 Manual Loads 0 Difficulty Rogue Special Mode None Game No. 44 Rogue 5 Adventurer 32 Explorer 7 Win Type - Total 0 Types 0/0/0/0/0/0/0/0/0 Lore% 18 Gallery% 48 Achievement% 37 Wizard Run 0 Options --------- Layout 1 ASCII 0 Keyboard 0 Movement Numpad Keybinds 0 Fullscreen 0 Font 16/Smallcaps Map View 64x42 Zoom Use 0% Tactical HUD 1 Map Filters NONE Filters NONE Steam 1 RUN: 8c68d9f7-eecf-42f8-97dc-92d72cda6d16